bitfinex-derivatives/quotes_BNBF0:USTF0_20250603
["timestamp","ask_amount","ask_price","bid_price","bid_amount"]
[1748913211890,0.38903172,670.04,668.91,0.29899388]
[1748913212090,0.38905633,670.03,668.91,0.29899388]
[1748913212292,1.48229378,670.03,668.91,0.29899388]
[1748913212495,1.87136234,670.02,668.91,0.29899388]
[1748913212696,0.38906855,670.01,668.91,0.29899388]
[1748913212893,1.48229378,670.03,668.91,0.29899388]
[1748913213093,1.48229378,670.02,668.91,0.29899388]
[1748913213401,0.38906666,670.01,668.91,0.29899388]
[1748913213699,1.48229378,670.01,668.91,0.29899388]
[1748913213999,0.77813206,670.0,668.91,0.29899388]
[1748913214193,2.26706603,670.0,668.91,0.29899388]
[1748913214398,0.38906603,669.99,668.94,1.10895674]
[1748913214592,0.38906708,669.98,668.96,0.29897153]
[1748913214797,1.148,669.99,668.96,0.29897153]
[1748913214997,0.38906742,669.98,668.96,0.29897153]
[1748913215198,1.074,669.98,668.96,0.29897153]
[1748913215491,0.38906544,669.97,668.96,1.40792827]
[1748913215696,0.38906585,669.96,668.96,1.40792827]
[1748913215895,1.074,669.98,668.96,0.29897153]
[1748913216094,0.38906581,669.97,668.97,1.10702593]
[1748913216299,0.38906581,669.97,668.99,0.29895813]
[1748913216494,1.074,669.98,668.99,0.29895813]
[1748913218299,1.526,669.97,668.99,1.40598406]
[1748913218496,1.526,669.97,668.99,0.29895813]
[1748913226611,0.967,669.96,668.99,0.29895813]
[1748913230108,1.418,669.95,668.99,0.29895813]
[1748913234717,0.922,669.94,668.99,0.29895813]
[1748913235319,1.045,669.93,668.99,0.29895813]
[1748913235613,2.479,669.93,668.99,0.29895813]
[1748913237718,2.479,669.93,669.07,1.10384612]
[1748913237920,2.479,669.93,669.09,0.29891344]
[1748913241017,1.275,669.92,669.09,0.29891344]
[1748913243625,1.095,669.91,669.09,0.29891344]
[1748913244827,1.269,669.9,669.09,0.29891344]
[1748913247524,1.269,669.9,669.1,1.10271658]
[1748913247730,1.269,669.9,669.11,0.29890451]
[1748913249532,1.269,669.9,669.11,1.40162109]
[1748913249926,1.269,669.9,669.11,0.29890451]
[1748913250328,1.269,669.9,669.11,1.40162109]
[1748913251133,0.922,669.89,669.11,1.40162109]
[1748913252434,0.922,669.89,669.12,1.10224978]
[1748913252734,0.922,669.89,669.13,0.29889558]
[1748913254527,0.922,669.89,669.14,1.10227365]
[1748913254727,0.922,669.89,669.15,0.29888664]
[1748913256430,0.922,669.89,669.21,1.10184695]
[1748913256632,0.922,669.89,669.22,0.29885538]
[1748913256832,0.922,669.89,669.22,1.40070233]
[1748913257428,0.922,669.89,669.23,1.10184695]
[1748913257629,0.922,669.89,669.24,0.29884645]
[1748913260439,0.922,669.89,669.24,1.40163592]
[1748913260933,0.922,669.89,669.24,0.29884645]
[1748913261334,0.922,669.89,669.24,1.40163592]
[1748913261540,0.922,669.89,669.24,0.29884645]
[1748913261740,0.975,669.88,669.24,0.29884645]
[1748913262439,0.975,669.88,669.26,1.10278947]
[1748913262639,0.975,669.88,669.27,0.29883305]
[1748913263240,0.975,669.88,669.3,1.10278947]
[1748913263435,0.975,669.88,669.31,0.29881519]
[1748913263835,0.975,669.88,669.31,1.40251776]
[1748913264242,0.975,669.88,669.31,0.29881519]
[1748913266441,0.975,669.88,669.32,1.10370257]
[1748913266743,0.975,669.88,669.33,0.29880626]
[1748913270239,1.437,669.87,669.33,0.29880626]
[1748913271738,1.424,669.86,669.33,0.29880626]
[1748913278543,1.433,669.85,669.33,0.29880626]
[1748913278744,2.684,669.85,669.33,0.29880626]
[1748913290255,0.943,669.84,669.33,0.29880626]
[1748913299460,1.346,669.83,669.33,0.29880626]
[1748913305659,1.112,669.82,669.33,0.29880626]
[1748913334592,1.48542225,669.8,669.33,0.29880626]
[1748913335588,1.48542225,669.81,669.33,0.29880626]
[1748913335893,2.59742225,669.82,669.33,0.29880626]
[1748913336492,1.48542225,669.81,669.33,0.29880626]
[1748913337892,1.48542225,669.8,669.33,0.29880626]
[1748913338594,1.48542225,669.76,669.33,0.29880626]
[1748913338791,1.48542225,669.77,669.33,0.29880626]
[1748913338995,1.48542225,669.76,669.33,0.29880626]
[1748913339190,1.48542225,669.79,669.33,0.29880626]
[1748913339393,1.48542225,669.76,669.33,0.29880626]
[1748913339593,1.48542225,669.77,669.33,0.29880626]
[1748913340096,1.112,669.82,669.33,0.29880626]
[1748913340097,1.48542225,669.76,669.33,0.29880626]
[1748913340297,1.48542225,669.77,669.33,0.29880626]
[1748913344200,1.48542225,669.79,669.33,0.29880626]
[1748913344494,1.48542225,669.8,669.33,0.29880626]
[1748913344697,1.48542225,669.79,669.33,0.29880626]
[1748913345598,1.48542225,669.77,669.33,0.29880626]
[1748913347394,3.54613337,669.93,669.33,0.29880626]
[1748913347395,1.48542225,669.76,669.33,0.29880626]
[1748913349000,1.48542225,669.75,669.33,0.29880626]
[1748913349302,1.48542225,669.76,669.33,0.29880626]
[1748913349697,1.48542225,669.75,669.33,0.29880626]
[1748913351501,1.48542225,669.74,669.33,0.29880626]
[1748913351701,1.48542225,669.75,669.33,0.29880626]
[1748913352401,1.48542225,669.74,669.33,0.29880626]
[1748913353399,1.48542225,669.75,669.33,0.29880626]
[1748913353996,1.48542225,669.74,669.33,0.29880626]
[1748913354406,1.48542225,669.73,669.33,0.29880626]
[1748913354605,2.22813337,669.85,669.33,0.29880626]
[1748913354606,1.48542225,669.71,669.33,0.29880626]
[1748913355001,1.48542225,669.69,669.33,0.29880626]
[1748913355204,1.48542225,669.66,669.33,0.29880626]
[1748913355801,1.318,669.93,669.33,0.29880626]
[1748913355802,1.48542225,669.68,669.33,0.29880626]
[1748913358205,1.318,669.93,669.33,0.29880626]
[1748913358206,1.48542225,669.66,669.33,0.29880626]
[1748913359311,1.318,669.93,669.33,0.29880626]
[1748913359312,1.48542225,669.7,669.33,0.29880626]
[1748913364016,1.48542225,669.69,669.33,0.29880626]
[1748913364517,1.48542225,669.68,669.33,0.29880626]
[1748913365618,1.48542225,669.67,669.33,0.29880626]
[1748913366518,0.25978389,670.32,669.33,0.29880626]
[1748913366519,1.074,669.76,669.33,0.29880626]
[1748913396540,1.48542225,669.9,669.33,0.29880626]
[1748913397540,1.516,669.89,669.33,0.29880626]
[1748913399141,3.00142225,669.89,669.33,0.29880626]
[1748913399342,1.516,669.89,669.33,0.29880626]
[1748913399641,1.531,669.88,669.33,0.29880626]
[1748913400243,1.368,669.87,669.33,0.29880626]
[1748913412751,2.85342225,669.87,669.33,0.29880626]
[1748913413451,1.48542225,669.86,669.33,0.29880626]
[1748913413755,2.85342225,669.87,669.33,0.29880626]
[1748913414556,1.368,669.87,669.33,0.29880626]
[1748913419254,0.78574587,669.86,669.33,0.29880626]
[1748913419557,1.368,669.87,669.33,0.29880626]
[1748913419962,0.39287327,669.86,669.33,0.29880626]
[1748913420158,1.368,669.87,669.33,0.29880626]
[1748913420553,0.39287327,669.86,669.33,0.29880626]
[1748913420759,0.39287327,669.85,669.33,0.29880626]
[1748913420959,1.368,669.87,669.33,0.29880626]
[1748913422261,1.48542225,669.84,669.33,0.29880626]
[1748913422459,0.39287331,669.83,669.33,0.29880626]
[1748913422663,0.39287317,669.82,669.33,0.29880626]
[1748913422861,1.48542225,669.84,669.33,0.29880626]
[1748913423058,0.39287197,669.83,669.33,0.29880626]
[1748913423261,0.39287197,669.82,669.33,0.29880626]
[1748913423462,0.39287197,669.83,669.33,0.29880626]
[1748913423658,1.87829422,669.83,669.33,0.29880626]
[1748913424064,1.48542225,669.81,669.33,0.29880626]
[1748913424662,1.48542225,669.75,669.33,0.29880626]
[1748913425460,1.48542225,669.74,669.33,0.29880626]
[1748913425861,1.48542225,669.81,669.33,0.29880626]
[1748913426058,1.48542225,669.79,669.33,0.29880626]
[1748913427563,1.48542225,669.75,669.33,0.29880626]
[1748913427959,1.48542225,669.71,669.33,0.29880626]
[1748913428158,1.48542225,669.74,669.33,0.29880626]
[1748913428565,1.48542225,669.72,669.33,0.29880626]
[1748913428763,1.48542225,669.71,669.33,0.29880626]
[1748913429668,1.87862991,669.74,669.33,0.29880626]
[1748913430168,0.39320766,669.74,669.33,0.29880626]
[1748913440276,1.439,669.73,669.33,0.29880626]
[1748913440582,1.24,669.72,669.33,0.29880626]
[1748913442078,1.023,669.71,669.33,0.29880626]
[1748913452891,1.371,669.7,669.33,0.29880626]
[1748913455896,1.164,669.69,669.33,0.29880626]
[1748913459192,2.318,669.69,669.33,0.29880626]
[1748913465099,3.558,669.69,669.33,0.29880626]
[1748913467202,1.355,669.68,669.33,0.29880626]
[1748913484014,1.355,669.68,669.35,1.11052368]
[1748913484214,1.355,669.68,669.36,0.29879287]
[1748913485515,1.355,669.68,669.36,1.4084436]
[1748913486313,1.355,669.68,669.37,1.10965073]
[1748913486613,1.355,669.68,669.38,0.29878394]
[1748913487714,1.355,669.68,669.38,1.40843467]
[1748913487908,1.355,669.68,669.38,0.29878394]
[1748913488910,1.355,669.68,669.38,1.40755319]
[1748913489115,1.355,669.68,669.38,0.29878394]
[1748913492419,1.154,669.69,669.38,0.29878394]
[1748913496317,1.002,669.68,669.38,0.29878394]
[1748913518334,4.76120766,669.74,669.38,0.29878394]
[1748913521934,1.204,669.73,669.38,0.29878394]
[1748913535132,4.76120766,669.74,669.38,0.29878394]
[1748913537935,1.218,669.73,669.38,0.29878394]
[1748913559960,4.368,669.74,669.38,0.29878394]
[1748913563557,1.06,669.73,669.38,0.29878394]
[1748913574669,4.368,669.74,669.38,0.29878394]
[1748913577266,0.93,669.73,669.38,0.29878394]
[1748913601287,4.368,669.74,669.38,0.29878394]
[1748913604091,0.969,669.73,669.38,0.29878394]
[1748913610390,0.969,669.73,669.38,1.41028106]
[1748913610896,0.969,669.73,669.41,1.11149712]
[1748913611098,0.969,669.73,669.4,1.11149712]
[1748913611292,0.969,669.73,669.43,1.11149712]
[1748913611489,0.969,669.73,669.44,1.11149712]
[1748913611994,0.969,669.73,669.45,1.41024982]
[1748913612197,0.969,669.73,669.46,0.29874824]
[1748913612899,0.969,669.73,669.47,1.11149712]
[1748913613098,0.969,669.73,669.48,1.11149712]
[1748913613299,0.969,669.73,669.49,0.29873485]
[1748913614698,0.969,669.73,669.49,1.41023197]
[1748913614999,0.969,669.73,669.49,0.29873485]
[1748913616499,0.969,669.73,669.49,1.40774262]
[1748913616996,0.969,669.73,669.51,1.10900777]
[1748913617203,0.969,669.73,669.52,1.40772924]
[1748913617395,0.969,669.73,669.54,1.10900777]
[1748913617594,0.969,669.73,669.55,0.29870808]
[1748913620302,3.545,669.85,669.55,0.29870808]
[1748913622498,1.162,669.84,669.55,0.29870808]
[1748913640612,1.162,669.84,669.56,1.10486335]
[1748913640813,1.162,669.84,669.57,0.29869916]
[1748913641615,1.162,669.84,669.57,1.40356251]
[1748913642218,1.162,669.84,669.57,0.29869916]
[1748913643117,1.162,669.84,669.57,1.40367175]
[1748913643517,1.162,669.84,669.61,1.10497259]
[1748913643721,1.162,669.84,668.96,0.47302567]
[1748913643722,1.162,669.84,669.62,1.40364945]
[1748913643921,1.162,669.84,669.63,0.2986724]
[1748913644719,1.162,669.84,669.7,1.10497259]
[1748913644920,1.162,669.84,669.71,1.40360931]
[1748913645121,1.162,669.84,669.72,0.29863226]
[1748913645525,1.162,669.84,669.77,1.10497259]
[1748913645724,1.162,669.84,669.78,0.29860551]
[1748913648522,1.185,669.85,669.78,0.29860551]
[1748913650925,2.299,669.91,669.78,0.29860551]
[1748913654125,2.299,669.91,669.78,1.40213548]
[1748913654830,2.299,669.91,669.78,0.29860551]
[1748913655223,1.22,669.91,669.78,0.29860551]
[1748913663140,1.262,669.93,669.78,0.29860551]
[1748913669338,1.262,669.93,669.8,1.10511285]
[1748913669543,1.262,669.93,669.81,0.29859213]
[1748913670145,1.262,669.93,669.81,1.40370498]
[1748913670444,1.262,669.93,669.83,1.10511285]
[1748913670638,1.262,669.93,669.47,2.22230537]
[1748913670639,1.262,669.93,669.84,0.29857876]
[1748913671040,1.262,669.93,669.84,1.40482681]
[1748913671239,1.262,669.93,669.85,1.10624805]
[1748913671544,1.262,669.93,669.86,0.29856985]
[1748913673845,1.262,669.93,669.86,1.4048179]
[1748913674541,1.262,669.93,669.86,0.29856985]
[1748913674945,2.655,670.14,669.86,0.29856985]
[1748913678249,1.278,670.13,669.86,0.29856985]
[1748913684747,1.278,670.13,669.86,1.40546137]
[1748913684952,1.278,670.13,669.86,0.29856985]
[1748913694859,1.278,670.13,669.92,1.10783509]
[1748913695052,1.278,670.13,669.93,0.29853865]
[1748913699163,1.278,670.13,669.93,1.40742598]
[1748913699756,1.278,670.13,669.96,1.10888733]
[1748913699963,1.278,670.13,669.97,1.40740815]
[1748913700161,1.278,670.13,670.04,1.10888733]
[1748913700364,1.278,670.13,670.07,1.10888733]
[1748913700563,1.278,670.13,670.08,1.40735915]
[1748913700763,1.278,670.13,670.09,0.29846737]
[1748913701764,1.278,670.13,670.09,1.4073547]
[1748913702059,1.278,670.13,670.09,0.29846737]
[1748913702464,1.278,670.13,670.09,1.40681985]
[1748913703258,1.278,670.13,670.1,1.10835248]
[1748913703559,1.278,670.13,670.11,0.29845846]
[1748913704361,1.285,670.14,670.11,0.29845846]
[1748913716677,1.187,670.26,670.11,0.29845846]
[1748913833262,1.187,670.26,670.13,1.10374065]
[1748913833461,1.187,670.26,670.18,1.10374065]
[1748913833664,1.48475647,671.14,670.19,0.29842283]
[1748913834265,1.48475647,671.17,670.19,1.40032201]
[1748913834465,1.48475647,671.19,670.19,0.29842283]
[1748913834665,2.22713471,671.34,670.33,1.10189918]
[1748913834865,1.48475647,671.35,670.35,0.2983516]
[1748913835166,0.38972242,671.34,670.35,0.2983516]
[1748913835461,1.427,671.34,670.35,0.2983516]
[1748913836165,1.571,671.33,670.35,0.2983516]
[1748913836364,3.439,671.33,670.35,0.2983516]
[1748913836564,1.164,671.32,670.35,0.2983516]
[1748913836967,1.618,671.31,670.35,0.2983516]
[1748913837167,2.686,671.31,670.35,0.2983516]
[1748913837369,0.906,671.3,670.35,0.2983516]
[1748913837764,1.024,671.29,670.35,0.2983516]
[1748913843677,0.38828734,671.28,670.35,0.2983516]
[1748913843969,0.388293,671.27,670.35,0.2983516]
[1748913844169,0.38828734,671.28,670.35,0.2983516]
[1748913844769,1.48475647,671.15,670.35,0.2983516]
[1748913844972,1.48475647,671.14,670.35,0.2983516]
[1748913845169,1.48475647,671.15,670.35,0.2983516]
[1748913845670,1.48475647,671.16,670.35,0.2983516]
[1748913845874,1.48475647,671.23,670.35,0.2983516]
[1748913846871,1.48475647,671.24,670.35,0.2983516]
[1748913847076,1.48475647,671.23,670.35,0.2983516]
[1748913847268,1.48475647,671.24,670.35,0.2983516]
[1748913847873,1.48475647,671.25,670.35,0.2983516]
[1748913849475,0.38834475,671.24,670.35,0.2983516]
[1748913849676,0.38828734,671.28,670.35,0.2983516]
[1748913849677,0.38826565,671.23,670.35,0.2983516]
[1748913849874,0.38828734,671.28,670.35,0.2983516]
[1748913858488,1.533,671.27,670.35,0.2983516]
[1748913862988,1.015,671.26,670.35,0.2983516]
[1748913863691,1.088,671.25,670.35,0.2983516]
[1748913866790,0.906,671.24,670.35,0.2983516]
[1748913867396,1.31,671.23,670.35,0.2983516]
[1748913868095,1.345,671.22,670.35,0.2983516]
[1748913870597,1.336,671.21,670.35,0.2983516]
[1748913872095,1.076,671.2,670.35,0.2983516]
[1748913874897,1.076,671.2,670.44,1.0966386]
[1748913875098,1.076,671.2,670.45,0.2983071]
[1748913875300,1.076,671.2,670.45,1.3949457]
[1748913876094,1.076,671.2,670.46,1.0966386]
[1748913876302,1.076,671.2,670.47,0.2982982]
[1748913878298,1.347,671.19,670.47,0.2982982]
[1748913880004,1.347,671.19,670.53,1.09811075]
[1748913880198,1.347,671.19,670.54,0.29826706]
[1748913880403,1.347,671.19,670.54,1.39637781]
[1748913880805,1.347,671.19,670.55,1.09811075]
[1748913881000,1.347,671.19,670.56,1.39636892]
[1748913881195,1.347,671.19,670.57,0.29825372]
[1748913882800,1.347,671.19,670.58,1.09866091]
[1748913883001,1.347,671.19,670.59,0.29824482]
[1748913887307,1.347,671.19,670.68,1.09923152]
[1748913887508,1.347,671.19,670.73,1.09923152]
[1748913887702,1.347,671.19,670.74,0.29817813]
[1748913888104,1.347,671.19,670.74,1.39740965]
[1748913888305,1.347,671.19,670.74,0.29817813]
[1748913889004,1.347,671.19,670.74,1.39682801]
[1748913889202,1.347,671.19,670.75,1.09864988]
[1748913889407,1.347,671.19,670.76,0.29816924]
[1748913892312,1.347,671.19,670.77,1.09864988]
[1748913892509,1.347,671.19,670.78,0.29816035]
[1748913893004,1.347,671.19,670.79,1.09864988]
[1748913893207,1.178,671.18,670.8,0.29815146]
[1748913894706,1.268,671.17,670.8,0.29815146]
[1748913899315,1.044,671.16,670.8,0.29815146]
[1748913905223,2.123,671.16,670.8,0.29815146]
[1748913907828,2.123,671.16,670.98,1.09749486]
[1748913908025,2.123,671.16,670.99,0.29806703]
[1748913908827,2.123,671.16,670.99,1.39556189]
[1748913909028,2.123,671.16,670.99,0.29806703]
[1748913909723,2.123,671.16,671.05,1.47537353]
[1748913909922,2.123,671.16,671.06,0.29803594]
[1748913911223,2.123,671.16,671.13,1.09475255]
[1748913911224,1.19361103,671.16,671.13,1.09475255]
[1748913911421,1.19361103,671.16,671.14,0.29800041]
[1748913914323,1.079,671.16,671.14,0.29800041]
[1748913926838,1.079,671.16,671.14,1.39353037]
[1748913928740,1.079,671.16,671.14,0.29800041]
[1748913938253,1.394,671.21,671.14,0.29800041]
[1748913939252,1.152,671.35,671.14,0.29800041]
[1748913942256,1.05,671.29,671.14,0.29800041]
[1748913976468,1.48475647,672.1,671.16,1.1001318]
[1748913976667,1.48475647,672.1,671.18,0.29798265]
[1748913976869,0.42198463,672.09,671.18,0.29798265]
[1748913977164,1.48475647,672.1,671.18,0.29798265]
[1748913977165,0.42198463,672.08,671.18,0.29798265]
[1748913977365,1.48475647,672.12,671.18,0.29798265]
[1748913977670,0.42197699,672.11,671.18,0.29798265]
[1748913977866,1.48475647,672.12,671.18,0.29798265]
[1748913978176,1.48475647,672.13,671.18,0.29798265]
[1748913978371,0.42197335,672.12,671.18,0.29798265]
[1748913978565,1.48475647,672.13,671.18,0.29798265]
[1748913978969,1.48475647,672.12,671.18,0.29798265]
[1748913979371,1.48475647,672.13,671.18,0.29798265]
[1748913979770,0.42181329,672.12,671.18,0.29798265]
[1748913979968,1.48475647,672.13,671.18,0.29798265]
[1748913980371,1.314,672.12,671.18,0.29798265]
[1748913981072,1.55481738,672.11,671.18,0.29798265]
[1748913981266,0.42181768,672.1,671.18,0.29798265]
[1748913981473,0.42163623,672.09,671.18,0.29798265]
[1748913981768,1.424,672.09,671.18,0.29798265]
[1748913982174,1.32863623,672.08,671.18,0.29798265]
[1748913982367,2.30963623,672.08,671.18,0.29798265]
[1748913982768,0.42166972,672.07,671.18,0.29798265]
[1748913982968,2.30963623,672.08,671.18,0.29798265]
[1748913983870,0.42172848,672.07,671.18,0.29798265]
[1748913984072,0.42172848,672.06,671.18,0.29798265]
[1748913984273,0.42172768,672.05,671.18,0.29798265]
[1748913984573,1.48475647,672.06,671.18,0.29798265]
[1748913984769,0.42172725,672.05,671.18,0.29798265]
[1748913984974,1.48475647,671.9,671.18,0.29798265]
[1748913985173,1.48475647,671.89,671.18,0.29798265]
[1748913985473,1.48475647,671.9,671.18,0.29798265]
[1748913985871,1.48475647,671.89,671.18,0.29798265]
[1748913986276,1.48475647,671.84,671.18,0.29798265]
[1748913986477,1.48475647,671.85,671.18,0.29798265]
[1748913986677,1.48475647,671.8,671.18,0.29798265]
[1748913987175,1.48475647,671.79,671.18,0.29798265]
[1748913987377,1.48475647,671.8,671.18,0.29798265]
[1748913988176,1.48475647,671.79,671.18,0.29798265]
[1748913988580,2.30963623,672.08,671.18,0.29798265]
[1748913988581,1.48475647,671.75,671.18,0.29798265]
[1748913988773,1.48475647,671.76,671.18,0.29798265]
[1748913989876,1.48475647,671.75,671.18,0.29798265]
[1748913991379,1.48475647,671.82,671.18,0.29798265]
[1748913991580,0.42216597,671.81,671.18,0.29798265]
[1748913991779,1.48475647,671.82,671.18,0.29798265]
[1748913991980,0.42216594,671.81,671.18,0.29798265]
[1748913992182,1.48475647,671.82,671.18,0.29798265]
[1748913993381,0.42221603,671.81,671.18,0.29798265]
[1748913993682,1.48475647,671.82,671.18,0.29798265]
[1748913993876,1.48475647,671.8,671.18,0.29798265]
[1748913994076,0.42266069,671.79,671.18,0.29798265]
[1748913994280,1.48475647,671.81,671.18,0.29798265]
[1748913994783,0.4226614,671.8,671.18,0.29798265]
[1748913994983,1.48475647,671.83,671.18,0.29798265]
[1748913995279,0.42266074,671.82,671.18,0.29798265]
[1748913995484,0.42266074,671.81,671.18,0.29798265]
[1748913995684,1.48475647,671.83,671.18,0.29798265]
[1748913996679,0.42261013,671.82,671.18,0.29798265]
[1748913996880,1.48475647,671.83,671.18,0.29798265]
[1748913997081,0.42261013,671.82,671.18,0.29798265]
[1748913997277,0.42261013,671.81,671.18,0.29798265]
[1748913997477,0.42261013,671.8,671.18,0.29798265]
[1748913997681,0.42261033,671.79,671.18,0.29798265]
[1748913997878,1.48475647,671.83,671.18,0.29798265]
[1748913998184,0.84522478,671.82,671.18,0.29798265]
[1748913998385,0.42261231,671.81,671.18,0.29798265]
[1748913998585,1.48475647,671.83,671.18,0.29798265]
[1748913999385,0.84525843,671.82,671.18,0.29798265]
[1748913999583,1.48475647,671.81,671.18,0.29798265]
[1748913999785,1.48475647,671.79,671.18,0.29798265]
[1748914000080,1.48475647,671.7,671.18,0.29798265]
[1748914000283,0.42268742,671.69,671.18,0.29798265]
[1748914000487,1.48475647,671.69,671.18,0.29798265]
[1748914000688,0.42269365,671.68,671.18,0.29798265]
[1748914001284,1.48475647,671.69,671.18,0.29798265]
[1748914001689,1.48475647,671.7,671.18,0.29798265]
[1748914002184,1.48475647,671.69,671.18,0.29798265]
[1748914002691,1.48475647,671.68,671.18,0.29798265]
[1748914002989,1.48475647,671.67,671.18,0.29798265]
[1748914003383,1.48475647,671.65,671.18,0.29798265]
[1748914003588,1.48475647,671.61,671.18,0.29798265]
[1748914003985,1.48475647,671.56,671.18,0.29798265]
[1748914005291,1.48475647,671.55,671.18,0.29798265]
[1748914005485,1.48475647,671.56,671.18,0.29798265]
[1748914006585,1.48475647,671.55,671.18,0.29798265]
[1748914008592,1.48475647,671.57,671.18,0.29798265]
[1748914009285,1.48475647,671.56,671.18,0.29798265]
[1748914009486,1.48475647,671.6,671.18,0.29798265]
[1748914009894,1.48475647,671.61,671.18,0.29798265]
[1748914010091,1.48475647,671.68,671.18,0.29798265]
[1748914010293,1.48475647,671.7,671.18,0.29798265]
[1748914010689,1.48475647,671.71,671.18,0.29798265]
[1748914010890,1.48475647,671.73,671.18,0.29798265]
[1748914011088,1.243,671.72,671.18,0.29798265]
[1748914011796,2.72775647,671.72,671.18,0.29798265]
[1748914011995,1.243,671.72,671.18,0.29798265]
[1748914012397,2.72775647,671.72,671.18,0.29798265]
[1748914012591,1.48475647,671.71,671.18,0.29798265]
[1748914013496,1.243,671.72,671.18,0.29798265]
[1748914013696,2.72775647,671.72,671.18,0.29798265]
[1748914013890,1.243,671.72,671.18,0.29798265]
[1748914023304,1.48080364,671.77,671.18,0.29798265]
[1748914024409,2.32617331,671.78,671.18,0.29798265]
[1748914024606,1.48080364,671.77,671.18,0.29798265]
[1748914024801,0.84536967,671.78,671.18,0.29798265]
[1748914025107,1.48080364,671.76,671.18,0.29798265]
[1748914025500,1.194,671.75,671.18,0.29798265]
[1748914026306,1.412,671.74,671.18,0.29798265]
[1748914026607,1.489,671.73,671.18,0.29798265]
[1748914029203,1.48080364,671.72,671.18,0.29798265]
[1748914030005,1.489,671.73,671.18,0.29798265]
[1748914034208,1.358,671.72,671.18,0.29798265]
[1748914050130,0.966,671.71,671.18,0.29798265]
[1748914052529,1.297,671.7,671.18,0.29798265]
[1748914063441,1.297,671.7,671.2,1.09582735]
[1748914063742,1.297,671.7,671.26,1.09582735]
[1748914064041,1.297,671.7,671.27,0.2979427]
[1748914064236,1.297,671.7,671.27,1.39377005]
[1748914064834,1.297,671.7,671.38,1.09532482]
[1748914065034,1.297,671.7,671.39,0.29788945]
[1748914065339,1.297,671.7,671.39,1.39321426]
[1748914065539,1.297,671.7,671.39,0.29788945]
[1748914066140,1.297,671.7,671.39,1.39321426]
[1748914066341,1.297,671.7,671.39,0.29788945]
[1748914066834,1.297,671.7,671.39,1.39321426]
[1748914067034,1.297,671.7,671.39,0.29788945]
[1748914076646,1.115,671.69,671.39,0.29788945]
[1748914087254,1.115,671.69,671.45,1.09802034]
[1748914087449,1.115,671.69,671.46,0.29785839]
[1748914088052,1.115,671.69,671.47,1.09802034]
[1748914088251,1.115,671.69,671.48,0.29784952]
[1748914091555,1.115,671.69,671.5,1.09788219]
[1748914091954,1.115,671.69,671.53,1.09788219]
[1748914092151,1.115,671.69,671.55,1.09788219]
[1748914092355,1.115,671.69,671.56,0.29781404]
[1748914093353,1.115,671.69,671.57,0.98322348]
[1748914093556,1.115,671.69,671.58,0.29780517]
[1748914093757,1.115,671.69,671.59,0.98553702]
[1748914093958,1.115,671.69,671.6,1.28333332]
[1748914094159,1.115,671.69,671.61,1.28332889]
[1748914094360,1.115,671.69,671.62,0.29778743]
[1748914095759,1.115,671.69,671.62,1.28332445]
[1748914095964,1.115,671.69,671.63,0.98553702]
[1748914096164,1.115,671.69,671.64,1.28331559]
[1748914096361,1.115,671.69,671.65,1.28331115]
[1748914096563,1.115,671.69,671.66,1.28330672]
[1748914096763,1.115,671.69,671.67,1.28330229]
[1748914096964,1.115,671.69,671.68,1.28329785]
[1748914097464,1.115,671.69,671.68,0.29776083]
[1748914098959,1.115,671.69,671.68,1.28250242]
[1748914101360,1.115,671.69,671.68,2.26725761]
[1748914101561,1.422,671.75,671.68,2.26725761]
[1748914101765,1.422,671.75,671.69,0.98475519]
[1748914101966,1.422,671.75,671.7,1.28250716]
[1748914102163,1.422,671.75,671.71,1.28250272]
[1748914102360,1.422,671.75,671.72,1.28249829]
[1748914102565,1.422,671.75,671.73,0.29773867]
[1748914103372,1.422,671.75,671.74,0.98460463]
[1748914103572,1.422,671.75,671.74,1.28233887]
[1748914104473,1.422,671.75,671.74,0.29773424]
[1748914104874,1.422,671.75,671.74,1.28230817]
[1748914105070,1.422,671.75,671.74,1.28204678]
[1748914112780,1.422,671.75,671.74,1.28228079]
[1748914116486,1.422,671.75,671.74,1.28233859]
[1748914119988,1.422,671.75,671.74,0.29773424]
[1748914132492,1.422,671.75,671.74,1.27343533]